bitfinex/quotes_SOLUSD_20251117
["timestamp","ask_amount","ask_price","bid_price","bid_amount"]
[1763410835334,24.12098091,130.84,130.79,14.05215322]
[1763410835530,9.78882769,130.82,130.77,0.67]
[1763410835723,24.12098091,130.82,130.77,14.72215322]
[1763410836119,24.12098091,130.82,130.77,0.67]
[1763410836120,9.78882769,130.81,130.77,0.67]
[1763410836424,0.28,130.81,130.77,0.67]
[1763410836727,14.05215322,130.83,130.78,14.05215322]
[1763410836924,9.78882769,130.83,130.79,14.05215322]
[1763410837254,9.78882769,130.84,130.8,0.67]
[1763410837447,9.78882769,130.84,130.8,14.72215322]
[1763410837671,14.05215322,130.88,130.83,14.05215322]
[1763410837827,14.05215322,130.88,130.81,0.67]
[1763410838319,0.28,130.9,130.83,14.05215322]
[1763410838518,9.78882769,130.87,130.83,14.05215322]
[1763410838940,10.06882769,130.87,130.81,0.67]
[1763410839143,23.84098091,130.87,130.82,14.72215322]
[1763410839356,9.78882769,130.9,130.83,14.05215322]
[1763410839528,9.78882769,130.89,130.85,14.05215322]
[1763410839855,24.12098091,130.89,130.84,0.67]
[1763410840050,14.05215322,130.88,130.84,0.67]
[1763410840440,0.1,130.93,130.84,0.67]
[1763410840441,0.45,130.92,130.84,14.72215322]
[1763410840773,0.38,130.93,130.87,14.05215322]
[1763410841066,0.38,130.93,130.89,8.9409012]
[1763410841369,9.88882769,130.93,130.89,9.6109012]
[1763410841530,9.88882769,130.93,130.89,0.67]
[1763410841732,9.88882769,130.93,130.9,0.69]
[1763410841953,0.1,130.93,130.9,0.69]
[1763410842161,18.82972889,130.93,130.87,0.69]
[1763410842331,9.78882769,130.9,130.86,18.81096]
[1763410842534,9.78882769,130.9,130.86,9.6309012]
[1763410842734,8.9409012,130.91,130.87,9.6309012]
[1763410842735,9.78882769,130.91,130.87,9.6309012]
[1763410843254,0.28,130.9,130.87,0.69]
[1763410844836,9.2209012,130.9,130.85,0.69]
[1763410845040,9.2209012,130.91,130.86,9.6309012]
[1763410845449,10.06882769,130.92,130.87,9.6309012]
[1763410845662,19.00972889,130.92,130.87,9.6309012]
[1763410845857,19.00972889,130.92,130.88,0.69]
[1763410846052,9.2209012,130.92,130.88,0.69]
[1763410846372,8.9409012,130.92,130.88,0.69]
[1763410846542,18.72972889,130.92,130.88,0.69]
[1763410847145,9.78882769,130.91,130.86,8.9409012]
[1763410847339,8.9409012,130.92,130.87,0.69]
[1763410847944,10.16882769,130.93,130.87,0.69]
[1763410848275,112.86882769,130.93,130.87,0.69]
[1763410848440,0.1,130.93,130.88,8.9409012]
[1763410848652,0.1,130.93,130.89,8.9409012]
[1763410849160,0.1,130.93,130.9,0.69]
[1763410849661,19.55972889,130.93,130.86,0.69]
[1763410849850,10.16882769,130.93,130.84,18.12096]
[1763410850055,9.78882769,130.9,130.87,0.69]
[1763410850274,9.78882769,130.9,130.85,9.6309012]
[1763410850456,9.78882769,130.9,130.86,9.6309012]
[1763410850658,0.28,130.91,130.86,9.6309012]
[1763410850860,0.28,130.91,130.87,0.69]
[1763410851293,9.78882769,130.9,130.87,0.69]
[1763410852089,0.38,130.93,130.87,9.6309012]
[1763410852295,9.88882769,130.93,130.88,8.9409012]
[1763410852485,9.88882769,130.93,130.88,9.6309012]
[1763410852800,9.7709012,130.93,130.87,8.9409012]
[1763410852975,9.3209012,130.93,130.88,0.69]
[1763410853580,9.0409012,130.93,130.88,9.6309012]
[1763410853915,9.88882769,130.93,130.88,9.6309012]
[1763410854078,9.88882769,130.93,130.89,0.69]
[1763410854678,18.82972889,130.93,130.89,0.69]
[1763410855578,9.78882769,130.91,130.86,0.69]
[1763410855898,9.78882769,130.91,130.86,9.6309012]
[1763410856277,0.28,130.9,130.86,0.69]
[1763410856470,8.9409012,130.9,130.86,0.69]
[1763410856668,9.2209012,130.91,130.86,0.69]
[1763410856889,8.9409012,130.9,130.86,0.69]
[1763410857090,8.9409012,130.88,130.83,9.6309012]
[1763410857292,8.9409012,130.89,130.84,0.69]
[1763410857884,8.9409012,130.88,130.84,0.69]
[1763410858416,8.9409012,130.89,130.84,9.6309012]
[1763410858633,8.9409012,130.89,130.84,0.69]
[1763410858830,8.9409012,130.88,130.85,0.69]
[1763410859496,8.9409012,130.87,130.77,7.08987784]
[1763410859690,10.06882769,130.86,130.81,0.69]
[1763410859890,18.22096,130.93,130.81,9.6309012]
[1763410859891,0.73,130.92,130.81,9.6309012]
[1763410860112,10.23882769,130.91,130.82,9.6309012]
[1763410860329,8.9409012,130.84,130.79,0.69]
[1763410860601,8.9409012,130.88,130.79,0.69]
[1763410860602,8.9409012,130.83,130.79,0.69]
[1763410860822,8.9409012,130.8,130.76,0.69]
[1763410861028,9.78882769,130.81,130.76,0.69]
[1763410861236,9.78882769,130.82,130.76,0.69]
[1763410861441,23.07,130.9,130.8,8.9409012]
[1763410861442,8.9409012,130.85,130.8,8.9409012]
[1763410861609,8.9409012,130.86,130.81,0.69]
[1763410861939,8.9409012,130.85,130.81,0.69]
[1763410862127,8.9409012,130.86,130.81,9.6309012]
[1763410862443,28.35978769,130.91,130.82,9.6309012]
[1763410862614,8.9409012,130.87,130.82,15.95607766]
[1763410862809,8.9409012,130.87,130.83,0.69]
[1763410863008,0.28,130.9,130.83,0.69]
[1763410863009,8.9409012,130.86,130.83,0.69]
[1763410863226,8.9409012,130.85,130.81,0.69]
[1763410863432,8.9409012,130.85,130.81,6.32517646]
[1763410863632,9.78882769,130.85,130.82,0.69]
[1763410864227,0.28,130.9,130.82,7.01517646]
[1763410864412,8.9409012,130.87,130.83,7.01517646]
[1763410865011,0.28,130.9,130.85,8.9409012]
[1763410865213,8.9409012,130.92,130.86,6.32517646]
[1763410865507,8.9409012,130.91,130.87,6.32517646]
[1763410865724,8.9409012,130.92,130.87,7.01517646]
[1763410866009,18.72972889,130.88,130.84,6.32517646]
[1763410866208,9.2209012,130.87,130.84,6.32517646]
[1763410866458,8.9409012,130.86,130.83,6.32517646]
[1763410866625,8.9409012,130.84,130.82,6.32517646]
[1763410866955,9.78882769,130.82,130.76,6.32517646]
[1763410867251,8.9409012,130.78,130.75,6.32517646]
[1763410867405,18.72972889,130.77,130.75,6.32517646]
[1763410867724,8.9409012,130.77,130.75,6.32517646]
[1763410867910,0.28,130.78,130.75,6.32517646]
[1763410868106,0.28,130.78,130.73,9.27260521]
[1763410868107,18.72972889,130.77,130.74,6.32517646]
[1763410868343,9.78882769,130.76,130.74,6.32517646]
[1763410868745,9.78882769,130.76,130.73,7.01517646]
[1763410868966,9.2209012,130.76,130.73,7.01517646]
[1763410869146,0.28,130.76,130.73,6.32517646]
[1763410869460,9.2209012,130.78,130.74,7.01517646]
[1763410869665,18.72972889,130.76,130.73,6.32517646]
[1763410869957,9.2209012,130.75,130.71,7.01517646]
[1763410870526,8.9409012,130.74,130.7,6.32517646]
[1763410870755,8.9409012,130.73,130.7,6.32517646]
[1763410870962,8.9409012,130.71,130.69,6.32517646]
[1763410871163,19.00972889,130.7,130.66,7.01517646]
[1763410871329,18.72972889,130.68,130.64,7.01517646]
[1763410871535,19.00972889,130.7,130.65,9.6309012]
[1763410871832,19.00972889,130.7,130.64,6.32517646]
[1763410871833,9.78882769,130.68,130.64,15.26607766]
[1763410872255,9.78882769,130.68,130.64,0.69]
[1763410872256,9.2209012,130.67,130.64,0.69]
[1763410872464,9.78882769,130.66,130.63,6.32517646]
[1763410872653,8.9409012,130.68,130.64,0.69]
[1763410872957,8.9409012,130.68,130.63,15.95607766]
[1763410873141,9.78882769,130.67,130.64,0.69]
[1763410873451,18.72972889,130.67,130.62,8.9409012]
[1763410873654,18.72972889,130.67,130.61,6.32517646]
[1763410873857,18.72972889,130.67,130.59,26.90356521]
[1763410873858,18.72972889,130.65,130.6,8.9409012]
[1763410874066,18.72972889,130.65,130.59,6.52517646]
[1763410874067,9.78882769,130.66,130.62,9.6309012]
[1763410874232,18.72972889,130.66,130.62,0.69]
[1763410874429,9.78882769,130.63,130.59,0.89]
[1763410874646,18.72972889,130.6,130.59,0.2]
[1763410875229,0.28,130.62,130.59,0.2]
[1763410875460,8.9409012,130.6,130.59,0.2]
[1763410875632,18.72972889,130.6,130.59,0.2]
[1763410875850,19.45972889,130.6,130.59,0.2]
[1763410876367,9.78882769,130.6,130.59,0.2]
[1763410876832,18.72972889,130.6,130.59,0.2]
[1763410877034,19.17972889,130.6,130.59,0.2]
[1763410877743,19.45972889,130.6,130.59,0.2]
[1763410877939,10.06882769,130.6,130.59,0.2]
[1763410878150,9.78882769,130.6,130.59,0.2]
[1763410878659,8.9409012,130.65,130.59,9.7909012]
[1763410878961,0.45,130.68,130.63,8.9409012]
[1763410878962,9.2209012,130.68,130.63,8.9409012]
[1763410879262,8.9409012,130.69,130.64,8.9409012]
[1763410879433,9.78882769,130.68,130.64,8.9409012]
[1763410879641,9.78882769,130.68,130.64,9.5909012]
[1763410879834,10.06882769,130.69,130.65,0.65]
[1763410880146,9.78882769,130.67,130.64,0.65]
[1763410880340,9.78882769,130.67,130.63,8.9409012]
[1763410880341,9.2209012,130.71,130.66,8.9409012]
[1763410880535,8.9409012,130.68,130.63,18.77096]
[1763410880739,10.06882769,130.67,130.6,0.65]
[1763410880933,9.78882769,130.65,130.61,8.9409012]
[1763410881135,19.00972889,130.65,130.61,8.9409012]
[1763410881341,19.00972889,130.65,130.61,0.65]
[1763410882060,18.72972889,130.65,130.61,0.65]
[1763410882266,10.06882769,130.68,130.62,8.9409012]
[1763410882443,19.00972889,130.68,130.63,8.9409012]
[1763410882641,9.78882769,130.66,130.62,8.9409012]
[1763410882842,9.78882769,130.63,130.59,0.2]
[1763410883058,9.78882769,130.63,130.59,9.7909012]
[1763410883467,18.72972889,130.63,130.59,0.2]
[1763410883776,8.9409012,130.61,130.59,0.2]
[1763410884069,19.00972889,130.6,130.59,0.2]
[1763410884559,19.45972889,130.6,130.59,0.2]
[1763410884755,37.58068889,130.6,130.59,0.2]
[1763410884957,19.45972889,130.6,130.54,0.2]
[1763410885157,18.72972889,130.55,130.54,0.2]
[1763410885376,9.78882769,130.55,130.54,0.2]
[1763410885671,9.78882769,130.6,130.54,9.7909012]
[1763410885966,9.2209012,130.59,130.55,0.65]
[1763410886468,9.78882769,130.57,130.54,0.2]
[1763410886687,9.78882769,130.57,130.54,0.85]
[1763410887572,8.9409012,130.59,130.55,0.65]
[1763410887776,10.06882769,130.58,130.55,0.65]
[1763410888074,9.78882769,130.61,130.57,8.9409012]
[1763410888365,8.9409012,130.63,130.58,8.9409012]
[1763410888570,0.45,130.66,130.58,8.9409012]
[1763410888571,18.85096,130.66,130.58,8.9409012]
[1763410888771,9.78882769,130.63,130.6,8.9409012]
[1763410888945,8.9409012,130.65,130.6,8.9409012]
[1763410889148,8.9409012,130.66,130.61,9.5909012]
[1763410889394,9.2209012,130.68,130.63,8.9409012]
[1763410889688,8.9409012,130.69,130.64,8.9409012]
[1763410889972,33.55992914,130.72,130.61,0.65]
[1763410889973,9.78882769,130.65,130.61,0.65]
[1763410890151,0.28,130.64,130.61,0.65]
[1763410890660,8.9409012,130.64,130.61,0.65]
[1763410890864,0.28,130.63,130.59,0.65]
[1763410891056,8.9409012,130.64,130.59,9.5909012]
[1763410891252,0.28,130.63,130.59,0.65]
[1763410891444,0.28,130.63,130.57,8.9409012]
[1763410891445,8.9409012,130.62,130.57,8.9409012]
[1763410891649,8.9409012,130.62,130.57,9.5909012]
[1763410891866,9.2209012,130.61,130.58,0.65]
[1763410892179,8.9409012,130.62,130.58,0.65]
[1763410892353,0.28,130.62,130.58,0.65]
[1763410892754,9.2209012,130.62,130.58,0.65]
[1763410893489,9.78882769,130.61,130.55,0.65]
[1763410893670,9.2209012,130.6,130.55,0.65]
[1763410893870,9.78882769,130.57,130.54,0.2]
[1763410894251,0.28,130.57,130.55,0.65]
[1763410894584,9.78882769,130.57,130.54,9.7909012]
[1763410894784,9.78882769,130.57,130.54,0.85]
[1763410895078,8.9409012,130.61,130.56,8.9409012]
[1763410895380,10.06882769,130.6,130.56,0.65]
[1763410895586,10.06882769,130.63,130.58,8.9409012]
[1763410895788,19.00972889,130.63,130.58,8.9409012]
[1763410895965,9.2209012,130.63,130.58,0.65]
[1763410896158,19.00972889,130.63,130.57,8.9409012]
[1763410896359,10.06882769,130.63,130.58,9.5909012]
[1763410896877,9.2209012,130.63,130.59,0.65]
[1763410897194,9.2209012,130.63,130.58,0.65]
[1763410897195,9.78882769,130.61,130.58,0.65]
[1763410897483,0.73,130.65,130.58,0.65]
[1763410897783,9.78882769,130.62,130.58,0.65]
[1763410897965,10.06882769,130.66,130.58,9.5909012]
[1763410898281,9.78882769,130.63,130.58,9.5909012]
[1763410898479,0.28,130.63,130.59,0.65]
[1763410898673,18.72972889,130.61,130.56,8.9409012]
[1763410898881,9.78882769,130.62,130.58,9.5909012]
[1763410899273,9.78882769,130.62,130.59,0.65]
[1763410899472,28.18978769,130.63,130.59,0.65]
[1763410899886,37.13068889,130.63,130.57,8.9409012]
[1763410900284,0.28,130.68,130.62,8.9409012]
[1763410900459,0.28,130.68,130.63,9.5909012]
[1763410900860,10.06882769,130.68,130.64,9.5909012]
[1763410901087,8.9409012,130.66,130.6,0.65]
[1763410901276,10.06882769,130.65,130.6,0.65]
[1763410901481,19.00972889,130.65,130.6,0.65]
[1763410901680,9.78882769,130.62,130.57,27.7618612]
[1763410901882,9.78882769,130.62,130.58,8.9409012]
[1763410902074,9.78882769,130.62,130.58,9.6409012]
[1763410902572,8.9409012,130.62,130.58,0.7]
[1763410902770,14.35296529,130.63,130.58,14.77296529]
[1763410903082,23.86179298,130.62,130.58,0.7]
[1763410903278,9.78882769,130.62,130.59,0.7]
[1763410903457,9.78882769,130.62,130.55,0.7]
[1763410904080,9.78882769,130.62,130.57,14.07296529]
[1763410904081,23.86179298,130.62,130.57,14.07296529]
[1763410904474,23.86179298,130.62,130.58,0.7]
[1763410904799,9.78882769,130.62,130.58,0.7]
[1763410905086,10.06882769,130.62,130.58,0.7]
[1763410905284,112.76882769,130.62,130.58,0.7]
[1763410905461,102.7,130.62,130.59,13.28716529]
[1763410905662,102.7,130.62,130.6,14.07296529]
[1763410905862,9.78882769,130.65,130.61,14.07296529]
[1763410906091,0.28,130.66,130.63,14.07296529]
[1763410906092,9.78882769,130.66,130.63,14.07296529]
[1763410906291,0.28,130.7,130.64,14.07296529]
[1763410906292,14.35296529,130.7,130.64,14.07296529]
[1763410906601,14.35296529,130.7,130.65,0.7]
[1763410906768,10.06882769,130.7,130.65,14.77296529]
[1763410907303,0.28,130.7,130.66,0.7]
[1763410907510,9.78882769,130.66,130.59,0.7]
[1763410907661,9.78882769,130.62,130.59,0.7]
[1763410907977,10.06882769,130.65,130.59,14.77296529]
[1763410908174,10.06882769,130.65,130.59,14.07296529]
[1763410908390,24.14179298,130.65,130.6,14.77296529]
[1763410908594,9.78882769,130.63,130.6,0.7]
[1763410908767,9.78882769,130.63,130.61,0.7]
[1763410909167,10.06882769,130.63,130.59,0.7]
[1763410909472,9.78882769,130.64,130.6,0.7]
[1763410909765,9.78882769,130.65,130.6,14.77296529]
[1763410909981,14.07296529,130.67,130.61,14.07296529]
[1763410910182,0.28,130.68,130.63,14.07296529]
[1763410910503,155.03951809,130.69,130.64,14.07296529]
[1763410910665,102.7,130.69,130.64,14.07296529]
[1763410910866,9.78882769,130.68,130.65,0.7]
[1763410911171,0.28,130.67,130.62,21.09814175]
[1763410911491,0.28,130.67,130.63,0.7]
[1763410911492,14.35296529,130.67,130.63,0.7]
[1763410911688,9.78882769,130.66,130.63,0.7]
[1763410912760,9.78882769,130.66,130.61,20.39814175]
[1763410912966,0.28,130.65,130.61,6.32517646]
[1763410913179,0.28,130.65,130.62,0.7]
[1763410913378,23.86179298,130.66,130.62,6.32517646]
[1763410913589,23.86179298,130.66,130.62,0.7]
[1763410913788,0.28,130.65,130.62,0.7]
[1763410913995,23.86179298,130.66,130.62,0.7]
[1763410914391,102.7,130.65,130.62,0.7]
[1763410915090,102.7,130.65,130.62,7.02517646]
[1763410915588,102.7,130.65,130.63,6.32517646]
[1763410916111,102.7,130.65,130.6,18.12096]
[1763410916112,102.7,130.65,130.64,7.02517646]
[1763410916300,102.7,130.65,130.64,6.32517646]
[1763410916670,102.7,130.65,130.64,7.02517646]
[1763410916887,102.7,130.65,130.64,0.7]
[1763410917288,102.7,130.65,130.64,9.28260521]
[1763410917573,102.7,130.65,130.64,23.3555705]
[1763410918094,102.7,130.65,130.64,23.3548046]
[1763410918301,116.77296529,130.69,130.64,0.7]
[1763410918478,126.84179298,130.68,130.66,6.43661741]
[1763410918688,14.07296529,130.67,130.66,6.43661741]
[1763410918892,9.78882769,130.66,130.64,6.43661741]
[1763410919199,24.14179298,130.66,130.64,6.43661741]
[1763410919584,126.56179298,130.65,130.64,6.43661741]
[1763410919991,112.48882769,130.65,130.64,6.43661741]
[1763410920414,24.14179298,130.65,130.64,6.43661741]
[1763410920608,9.78882769,130.64,130.6,6.43661741]
[1763410920930,9.78882769,130.64,130.57,0.7]
[1763410920931,9.78882769,130.63,130.61,6.43661741]
[1763410921112,9.78882769,130.66,130.62,6.43661741]
[1763410921417,23.86179298,130.63,130.62,6.43957427]
[1763410921623,10.06882769,130.63,130.59,6.43957427]
[1763410921788,23.86179298,130.6,130.59,6.43957427]
[1763410921990,23.86179298,130.61,130.59,6.43957427]
[1763410922184,9.78882769,130.62,130.6,6.43957427]
[1763410922429,9.78882769,130.62,130.6,9.28215655]
[1763410922603,9.78882769,130.62,130.61,6.44125825]
[1763410922925,9.78882769,130.62,130.58,14.07296529]
[1763410922926,24.14179298,130.62,130.6,6.44125825]
[1763410923240,9.78882769,130.6,130.57,6.44125825]
[1763410923517,0.28,130.62,130.58,6.44125825]
[1763410923730,14.07296529,130.64,130.61,6.44097091]
[1763410923886,9.78882769,130.64,130.61,7.14097091]
[1763410924091,9.78882769,130.64,130.62,6.44097091]
[1763410924323,23.86179298,130.64,130.62,6.44097091]
[1763410924830,14.07296529,130.65,130.62,6.44097091]
[1763410925129,10.06882769,130.64,130.62,6.44097091]
[1763410925441,0.73,130.66,130.61,6.44097091]
[1763410925594,9.78882769,130.64,130.62,6.44097091]
[1763410925921,24.14179298,130.64,130.61,6.44097091]
[1763410926103,0.28,130.64,130.62,6.44097091]
[1763410926422,10.06882769,130.64,130.62,6.44097091]
[1763410926723,0.28,130.64,130.62,6.44097091]
[1763410927596,0.73,130.64,130.62,6.44097091]
[1763410927904,0.28,130.64,130.62,6.44097091]
[1763410928920,112.48882769,130.63,130.62,6.44097091]
[1763410929130,112.48882769,130.63,130.61,6.44097091]
[1763410929416,112.48882769,130.63,130.6,6.44097091]
[1763410929417,0.28,130.62,130.6,6.44097091]
[1763410929599,10.06882769,130.62,130.61,6.44097091]
[1763410929800,10.06882769,130.62,130.59,6.44097091]
[1763410930006,9.78882769,130.6,130.59,6.44097091]
[1763410930206,24.14179298,130.6,130.58,6.44097091]
[1763410930403,9.78882769,130.59,130.58,6.44097091]
[1763410930606,9.78882769,130.59,130.57,8.58215655]
[1763410930910,24.59179298,130.58,130.57,6.44879828]
[1763410931121,24.14179298,130.58,130.56,6.44879828]
[1763410931324,24.31179298,130.57,130.56,6.44879828]
[1763410931519,23.86179298,130.57,130.56,6.44879828]
[1763410931834,9.78882769,130.57,130.56,6.44879828]
[1763410932035,0.28,130.57,130.56,6.44879828]
[1763410932328,10.06882769,130.6,130.56,23.35512184]
[1763410932506,14.07296529,130.59,130.58,6.44880705]
[1763410932714,23.86179298,130.59,130.57,6.44880705]
[1763410933032,0.28,130.58,130.57,6.44880705]
[1763410933240,24.14179298,130.6,130.56,8.58215655]
[1763410933428,24.14179298,130.6,130.55,14.07296529]
[1763410933429,9.78882769,130.57,130.55,8.58215655]
[1763410933728,0.28,130.56,130.54,8.78215655]
[1763410934024,24.14179298,130.57,130.54,8.78215655]
[1763410934199,10.06882769,130.57,130.56,6.44911481]
[1763410934409,0.28,130.57,130.56,6.44911481]
[1763410934725,9.78882769,130.57,130.56,6.44740338]
[1763410934932,10.06882769,130.57,130.56,6.44740338]
[1763410935426,0.28,130.57,130.56,6.44740338]
[1763410935734,24.14179298,130.57,130.56,6.44740338]
[1763410936040,0.28,130.57,130.55,6.44740338]
[1763410936242,10.06882769,130.6,130.56,14.07296529]
[1763410936447,24.14179298,130.6,130.58,6.44396004]
[1763410936744,24.14179298,130.6,130.59,6.44396004]
[1763410936745,9.78882769,130.6,130.59,6.44396004]
[1763410937617,23.86179298,130.6,130.57,6.44396004]
[1763410937833,0.28,130.59,130.57,6.44396004]
[1763410938331,14.35296529,130.59,130.56,6.44396004]
[1763410939007,14.35296529,130.59,130.57,6.44396004]
[1763410939206,14.35296529,130.59,130.56,6.44396004]
[1763410939443,9.78882769,130.58,130.56,6.44396004]
[1763410939616,42.26275298,130.57,130.55,6.44396004]
[1763410939811,9.78882769,130.55,130.54,0.2]
[1763410940341,10.06882769,130.57,130.54,14.96296529]
[1763410940541,10.06882769,130.57,130.55,6.44178855]
[1763410941333,0.28,130.57,130.56,6.44178855]
[1763410941557,10.06882769,130.6,130.56,14.76296529]
[1763410941740,10.06882769,130.6,130.57,6.43952407]
[1763410941911,23.86179298,130.58,130.56,6.43952407]
[1763410942111,10.06882769,130.57,130.55,6.43952407]
[1763410942528,10.06882769,130.57,130.54,7.32952407]
[1763410943328,24.14179298,130.57,130.54,6.63952407]
[1763410943627,23.86179298,130.56,130.54,0.2]
[1763410943942,9.78882769,130.56,130.54,0.2]
[1763410944139,10.06882769,130.57,130.55,7.12952407]
[1763410944327,0.28,130.57,130.56,6.43551573]
[1763410944529,0.28,130.57,130.55,6.43551573]
[1763410944530,9.78882769,130.57,130.55,6.43551573]
[1763410944722,0.28,130.56,130.55,6.43551573]
[1763410945246,0.28,130.56,130.54,6.63551573]
[1763410945411,0.28,130.56,130.54,0.2]
[1763410945610,9.78882769,130.56,130.54,0.2]
[1763410945920,0.28,130.55,130.54,0.2]
[1763410946253,10.06882769,130.55,130.54,0.2]
[1763410946460,24.59179298,130.55,130.54,0.2]
[1763410946942,24.14179298,130.55,130.54,0.2]
[1763410947138,24.59179298,130.55,130.54,0.2]
[1763410948218,24.14179298,130.55,130.54,0.2]
[1763410949122,10.06882769,130.55,130.54,0.2]
[1763410949850,24.14179298,130.55,130.54,0.2]
[1763410950026,10.06882769,130.55,130.54,0.2]
[1763410950438,24.14179298,130.55,130.54,0.2]
[1763410950948,10.06882769,130.55,130.54,0.2]
[1763410951120,24.14179298,130.55,130.54,0.2]
[1763410951522,24.59179298,130.55,130.54,0.2]
[1763410951933,9.78882769,130.51,130.49,0.2]
[1763410952247,24.14179298,130.5,130.49,0.2]
[1763410952626,10.06882769,130.5,130.49,0.2]
[1763410953938,0.28,130.51,130.49,0.89]
[1763410954144,24.14179298,130.55,130.5,14.76296529]
[1763410954346,9.78882769,130.54,130.5,14.76296529]
[1763410954658,0.28,130.53,130.51,0.69]
[1763410955156,0.28,130.55,130.51,6.4261662]
[1763410955340,9.78882769,130.54,130.49,7.3161662]
[1763410955543,0.28,130.53,130.5,14.76296529]
[1763410955851,0.28,130.53,130.51,14.76296529]
[1763410956060,0.28,130.55,130.51,14.76296529]
[1763410956263,9.78882769,130.52,130.49,6.6261662]
[1763410956481,10.06882769,130.51,130.49,0.2]
[1763410956657,0.28,130.54,130.5,14.76296529]
[1763410956847,0.28,130.54,130.5,0.69]
[1763410956848,10.06882769,130.54,130.5,0.69]
[1763410957180,10.06882769,130.54,130.51,0.69]
[1763410957867,9.78882769,130.51,130.49,0.2]
[1763410958064,10.06882769,130.51,130.49,0.89]
[1763410958261,9.78882769,130.5,130.49,0.2]
[1763410959982,9.78882769,130.5,130.49,0.89]
[1763410960270,0.28,130.54,130.49,14.96296529]
[1763410960271,14.35296529,130.54,130.49,14.96296529]
[1763410960482,0.28,130.54,130.5,14.76296529]
[1763410960857,9.78882769,130.53,130.49,0.2]
[1763410961064,9.78882769,130.5,130.49,0.2]
[1763410961253,10.06882769,130.5,130.49,0.2]
[1763410961653,24.14179298,130.5,130.49,0.2]
[1763410961850,24.59179298,130.5,130.49,0.2]
[1763410962092,10.06882769,130.5,130.49,0.9]
[1763410962401,9.78882769,130.5,130.49,0.2]
[1763410962554,23.86179298,130.5,130.49,0.2]
[1763410962884,9.78882769,130.5,130.49,0.2]
[1763410963275,9.78882769,130.5,130.49,0.9]
[1763410963476,23.86179298,130.5,130.49,0.2]
[1763410963772,24.31179298,130.5,130.49,0.2]
[1763410963974,9.78882769,130.47,130.45,0.2]
[1763410964165,112.56882769,130.46,130.45,0.2]
[1763410964487,112.56882769,130.46,130.45,0.9]
[1763410964658,112.56882769,130.46,130.45,0.2]
[1763410964857,112.56882769,130.46,130.45,0.9]
[1763410964858,112.28882769,130.46,130.45,0.9]
[1763410965257,112.28882769,130.46,130.45,0.2]
[1763410967388,9.78882769,130.46,130.45,0.9]
[1763410967691,9.78882769,130.46,130.45,0.2]
[1763410968577,9.78882769,130.46,130.45,9.90181148]
[1763410968884,12.7287006,130.5,130.45,0.9]
[1763410969091,6.65998801,130.5,130.45,9.90181148]
[1763410969595,9.45181148,130.49,130.45,0.2]
[1763410969960,9.00181148,130.49,130.45,0.2]
[1763410970364,24.76112891,130.51,130.45,0.2]
[1763410970365,9.45181148,130.48,130.45,0.2]
[1763410970769,9.00181148,130.47,130.45,0.2]
[1763410971095,121.49063917,130.46,130.45,0.2]
[1763410971460,19.24063917,130.46,130.45,0.2]
[1763410971661,18.79063917,130.46,130.45,0.2]
[1763410971869,18.79063917,130.47,130.45,0.2]
[1763410972174,9.78882769,130.47,130.45,0.2]
[1763410972393,9.00181148,130.5,130.45,9.90181148]
[1763410972760,9.78882769,130.49,130.45,9.90181148]
[1763410972977,9.78882769,130.47,130.45,0.2]
[1763410973364,18.79063917,130.47,130.45,0.2]
[1763410974491,18.12096,130.48,130.45,0.9]
[1763410974705,9.78882769,130.47,130.45,9.20181148]
[1763410974868,9.78882769,130.47,130.45,0.2]
[1763410976791,9.78882769,130.5,130.46,9.00181148]
[1763410976967,9.78882769,130.5,130.45,0.9]
[1763410977168,9.78882769,130.5,130.46,9.70181148]
[1763410978402,18.79063917,130.5,130.46,0.7]
[1763410979272,9.78882769,130.5,130.46,0.7]
[1763410979487,18.79063917,130.5,130.45,9.20181148]
[1763410979711,18.79063917,130.5,130.45,9.90181148]
[1763410980086,9.78882769,130.5,130.46,0.7]
[1763410980286,18.79063917,130.5,130.46,0.7]
[1763410980693,9.78882769,130.5,130.47,9.00181148]
[1763410981008,9.78882769,130.5,130.47,0.7]